bitfinex-derivatives/quotes_BTCF0:USTF0_20251025
["timestamp","ask_amount","ask_price","bid_price","bid_amount"]
[1761402780532,0.02713016,111630.0,111620.0,0.48879932]
[1761402783933,0.02713016,111630.0,111620.0,0.60492864]
[1761402784231,0.02713016,111630.0,111620.0,0.48879932]
[1761402784732,0.02713016,111630.0,111620.0,0.60492864]
[1761402786426,0.02413016,111630.0,111620.0,0.60492864]
[1761402787434,0.02313016,111630.0,111620.0,0.60492864]
[1761402787733,0.02413016,111630.0,111620.0,0.60492864]
[1761402788123,0.02413016,111630.0,111620.0,0.48879932]
[1761402788429,0.02413016,111630.0,111620.0,0.60492864]
[1761402789333,0.02413016,111630.0,111620.0,0.57837622]
[1761402791631,0.02413016,111630.0,111620.0,0.69450554]
[1761402792641,0.02413016,111630.0,111620.0,0.57837622]
[1761402793335,0.02413016,111630.0,111620.0,0.69450554]
[1761402794733,0.02413016,111630.0,111620.0,0.5912283]
[1761402796442,0.02413016,111630.0,111620.0,0.5016514]
[1761402796643,0.06838016,111630.0,111620.0,0.5015314]
[1761402806747,0.02413016,111630.0,111620.0,0.5015314]
[1761402809950,0.02413016,111630.0,111620.0,0.1870114]
[1761402810141,0.02413016,111630.0,111620.0,0.5015714]
[1761402814251,0.04598016,111630.0,111620.0,0.5015314]
[1761402814453,0.06866016,111630.0,111620.0,0.5015314]
[1761402819450,0.06866016,111630.0,111620.0,0.1870114]
[1761402819650,0.06866016,111630.0,111620.0,0.5015314]
[1761402826054,0.06866016,111630.0,111620.0,0.5014914]
[1761402829858,0.06866016,111630.0,111620.0,0.37251]
[1761402830058,0.06866016,111630.0,111620.0,0.5014914]
[1761402830750,0.06868598,111630.0,111620.0,0.37251]
[1761402831059,0.06868598,111630.0,111620.0,0.5014914]
[1761402833157,0.04600598,111630.0,111620.0,0.5014914]
[1761402833453,0.06868598,111630.0,111620.0,0.5014914]
[1761402836365,0.06868598,111630.0,111620.0,0.37251]
[1761402836560,0.06868598,111630.0,111620.0,0.5014914]
[1761402839872,0.06868598,111630.0,111620.0,0.5013714]
[1761402842064,0.06868598,111630.0,111620.0,0.37239]
[1761402845271,0.06868598,111630.0,111620.0,0.5013714]
[1761402845467,0.05824,111620.0,111610.0,6.754e-05]
[1761402845776,0.05824,111590.0,111580.0,0.01006]
[1761402845965,0.09132223,111590.0,111580.0,0.01006]
[1761402846664,0.09143773,111590.0,111580.0,0.01006]
[1761402847473,0.08143773,111590.0,111580.0,0.01006]
[1761402848273,0.0583555,111590.0,111580.0,0.4549214]
[1761402848774,0.0593555,111590.0,111580.0,0.4549214]
[1761402849865,0.0623555,111590.0,111580.0,0.4549214]
[1761402856686,0.0623555,111590.0,111580.0,0.44213169]
[1761402858080,0.0623555,111590.0,111580.0,0.12625169]
[1761402858283,0.08634933,111590.0,111580.0,0.44213169]
[1761402858683,0.08634933,111590.0,111580.0,0.32594]
[1761402858880,0.08634933,111590.0,111580.0,0.44213169]
[1761402861485,0.0623555,111590.0,111580.0,0.44213169]
[1761402863179,0.0623555,111590.0,111580.0,0.12625169]
[1761402863382,0.0623555,111590.0,111580.0,0.44201169]
[1761402863580,0.0623555,111590.0,111580.0,0.12625169]
[1761402863781,0.0623555,111590.0,111580.0,0.44201169]
[1761402866282,0.0623555,111590.0,111580.0,0.44197169]
[1761402866485,0.08663732,111590.0,111580.0,0.44197169]
[1761402866788,0.08663732,111590.0,111580.0,0.12625169]
[1761402866993,0.08663732,111590.0,111580.0,0.44197169]
[1761402868782,0.08663732,111590.0,111580.0,0.32578]
[1761402869181,0.08663732,111590.0,111580.0,0.44197169]
[1761402872188,0.08668334,111590.0,111580.0,0.44197169]
[1761402873191,0.08668334,111590.0,111580.0,0.44185169]
[1761402874486,0.08668334,111590.0,111580.0,0.12625169]
[1761402874790,0.08668334,111590.0,111580.0,0.44185169]
[1761402875185,0.11077982,111590.0,111580.0,0.44185169]
[1761402877794,0.10977982,111590.0,111580.0,0.44185169]
[1761402877990,0.11077982,111590.0,111580.0,0.44185169]
[1761402879089,0.11077982,111590.0,111580.0,0.32566]
[1761402879290,0.11077982,111590.0,111580.0,0.44185169]
[1761402879486,0.10677982,111590.0,111580.0,0.44185169]
[1761402879688,0.11077982,111590.0,111580.0,0.44185169]
[1761402879993,0.05253982,111590.0,111580.0,0.44185169]
[1761402880497,0.07558982,111590.0,111580.0,0.44185169]
[1761402881088,0.09660982,111590.0,111580.0,0.44185169]
[1761402881392,0.11012982,111590.0,111580.0,0.44185169]
[1761402881596,0.10712982,111590.0,111580.0,0.44185169]
[1761402883793,0.10712982,111590.0,111580.0,0.64765378]
[1761402883794,0.04953982,111590.0,111580.0,0.64765378]
[1761402883995,0.02544334,111590.0,111580.0,0.64765378]
[1761402884301,0.06016648,111610.0,111600.0,0.01006]
[1761402884599,0.10523405,111610.0,111600.0,0.55792338]
[1761402885198,0.10533014,111610.0,111600.0,0.55792338]
[1761402886212,0.10533014,111610.0,111600.0,0.44173169]
[1761402887213,0.08223366,111610.0,111600.0,0.44173169]
[1761402891409,0.08223366,111610.0,111600.0,0.12625169]
[1761402891612,0.08223366,111610.0,111600.0,0.44161169]
[1761402892115,0.08223366,111610.0,111600.0,0.01006]
[1761402892313,0.19842535,111610.0,111600.0,0.32542]
[1761402892615,0.19842535,111610.0,111600.0,0.44161169]
[1761402892616,0.08223366,111610.0,111600.0,0.44161169]
[1761402894315,0.08223366,111610.0,111600.0,0.32542]
[1761402894513,0.19842535,111610.0,111600.0,0.32542]
[1761402895317,0.19842535,111610.0,111600.0,0.44161169]
[1761402898617,0.19842535,111610.0,111600.0,0.12625169]
[1761402898818,0.19842535,111610.0,111600.0,0.44153169]
[1761402899817,0.19842535,111610.0,111600.0,0.32534]
[1761402900014,0.19842535,111610.0,111600.0,0.12625169]
[1761402900209,0.19842535,111610.0,111600.0,0.44153169]
[1761402900520,0.08223366,111610.0,111600.0,0.44149169]
[1761402901215,0.04819366,111610.0,111600.0,0.44149169]
[1761402901410,0.02514366,111610.0,111600.0,0.64727728]
[1761402902216,0.02514366,111610.0,111600.0,0.55768338]
[1761402902620,0.00109609,111610.0,111600.0,0.55768338]
[1761402906123,0.00109609,111610.0,111600.0,0.64727748]
[1761402908422,9.609e-05,111610.0,111600.0,0.64727748]
[1761402908723,9.609e-05,111610.0,111600.0,0.65027748]
[1761402909321,9.609e-05,111610.0,111600.0,1.25027748]
[1761402909626,0.0585,111630.0,111620.0,0.12625169]
[1761402909815,0.0815012,111630.0,111620.0,0.44141169]
[1761402910416,0.08155337,111630.0,111620.0,0.44141169]
[1761402910823,0.08255337,111630.0,111620.0,0.44141169]
[1761402911622,0.08555337,111630.0,111620.0,0.44141169]
[1761402913722,0.08555337,111630.0,111620.0,0.45033811]
[1761402914317,0.02705337,111630.0,111620.0,0.5665298]
[1761402914517,0.00405217,111630.0,111620.0,0.6561077]
[1761402915724,0.00105217,111630.0,111620.0,0.6561077]
[1761402917233,0.00105217,111630.0,111620.0,0.13517811]
[1761402917421,0.00105217,111630.0,111620.0,0.45325811]
[1761402917627,5.217e-05,111630.0,111620.0,0.45325811]
[1761402917820,0.02188217,111630.0,111620.0,0.45325811]
[1761402918732,0.02188217,111630.0,111620.0,0.46605978]
[1761402919933,0.05765217,111630.0,111620.0,0.14205336]
[1761402920132,0.05765217,111630.0,111620.0,0.45709336]
[1761402923832,0.05765217,111630.0,111620.0,0.14205336]
[1761402924040,0.05765217,111630.0,111620.0,0.45701336]
[1761402933845,0.05765217,111630.0,111620.0,0.14205336]
[1761402934042,0.05765217,111630.0,111620.0,0.45689336]
[1761402934350,0.05765217,111630.0,111620.0,0.14205336]
[1761402934540,0.05765217,111630.0,111620.0,0.45689336]
[1761402937240,0.05765217,111630.0,111620.0,0.01306]
[1761402937635,0.05765217,111630.0,111620.0,0.32786]
[1761402938746,0.05865217,111630.0,111620.0,0.32786]
[1761402938950,0.05865217,111630.0,111620.0,0.32486]
[1761402939140,0.06165217,111630.0,111620.0,0.32486]
[1761402939335,0.08447346,111630.0,111620.0,0.32486]
[1761402947346,0.08447346,111630.0,111620.0,0.45385336]
[1761402948552,0.04870346,111630.0,111620.0,0.45385336]
[1761402950257,0.08307346,111630.0,111620.0,0.32486]
[1761402953342,0.08307346,111630.0,111620.0,0.45385336]
[1761402958254,0.08307346,111630.0,111620.0,0.32486]
[1761402958453,0.08307346,111630.0,111620.0,0.45385336]
[1761402967159,0.08307346,111630.0,111620.0,0.32486]
[1761402967457,0.08307346,111630.0,111620.0,0.45385336]
[1761402973375,0.0830208,111630.0,111620.0,0.45385336]
[1761402980778,0.0830208,111630.0,111620.0,0.4409698]
[1761402981176,0.1991306,111630.0,111620.0,0.31955]
[1761402981366,0.0830208,111630.0,111620.0,0.4406898]
[1761402985178,0.1991306,111630.0,111620.0,0.4406898]
[1761402985686,0.09185088,111630.0,111620.0,0.4406898]
[1761402987284,0.0830208,111630.0,111620.0,0.4406898]
[1761402999490,0.0830208,111630.0,111620.0,0.32458]
[1761402999991,0.0830208,111630.0,111620.0,0.4406898]
[1761403009700,0.0830208,111630.0,111620.0,0.45393392]
[1761403010800,0.0830208,111630.0,111620.0,0.33782412]
[1761403011002,0.0830208,111630.0,111620.0,0.45393392]
[1761403012601,0.0830208,111630.0,111620.0,0.45393481]
[1761403021897,0.0830208,111630.0,111620.0,0.33782501]
[1761403022205,0.0830208,111630.0,111620.0,0.45393481]
[1761403023702,0.0486508,111630.0,111620.0,0.45393481]
[1761403024005,0.0268208,111630.0,111620.0,0.45393481]
[1761403024404,0.0488908,111630.0,111620.0,0.45393481]
[1761403025101,0.0268208,111630.0,111620.0,0.45393481]
[1761403027000,0.0238208,111630.0,111620.0,0.45393481]
[1761403027602,0.0228208,111630.0,111620.0,0.45393481]
[1761403027802,0.0238208,111630.0,111620.0,0.45393481]
[1761403031908,0.0458908,111630.0,111620.0,0.45393481]
[1761403039509,0.0238208,111630.0,111620.0,0.45393481]
[1761403040016,0.0458908,111630.0,111620.0,0.45393481]
[1761403040916,0.0458908,111630.0,111620.0,0.46681767]
[1761403046019,0.0675808,111630.0,111620.0,0.46681767]
[1761403047428,0.0810708,111630.0,111620.0,0.46681767]
[1761403055227,0.0810708,111630.0,111620.0,0.33782501]
[1761403056825,0.0800708,111630.0,111620.0,0.33782501]
[1761403057021,0.0810708,111630.0,111620.0,0.46681767]
[1761403057326,0.0870708,111630.0,111620.0,0.46681767]
[1761403058422,0.0870708,111630.0,111620.0,0.46663407]
[1761403059528,0.0860708,111630.0,111620.0,0.46663407]
[1761403059729,0.0830708,111630.0,111620.0,0.46663407]
[1761403060628,0.0840708,111630.0,111620.0,0.46663407]
[1761403061332,0.0830708,111630.0,111620.0,0.46663407]
[1761403061527,0.0840708,111630.0,111620.0,0.46663407]
[1761403065835,0.08413452,111630.0,111620.0,0.46663407]
[1761403070737,0.08413452,111630.0,111620.0,0.45357266]
[1761403071538,0.02688452,111630.0,111620.0,0.45357266]
[1761403071938,0.04998452,111630.0,111620.0,0.45357266]
[1761403072142,0.07201452,111630.0,111620.0,0.45357266]
[1761403073940,0.08531452,111630.0,111620.0,0.45357266]
[1761403076433,0.04998452,111630.0,111620.0,0.45357266]
[1761403078341,0.02416195,111650.0,111640.0,0.00503]
[1761403078641,0.05775,111660.0,111640.0,0.45856266]
[1761403078840,0.05775,111660.0,111650.0,0.12899266]
[1761403079041,0.05775,111660.0,111650.0,0.13905266]
[1761403081136,0.05875,111660.0,111650.0,0.13905266]
[1761403081743,0.06275,111660.0,111650.0,0.13905266]
[1761403085940,0.06275,111660.0,111650.0,0.22860896]
[1761403086244,0.005,111660.0,111650.0,0.22860896]
[1761403087140,0.02832,111660.0,111650.0,0.13905266]
[1761403087346,0.005,111660.0,111650.0,0.22860896]
[1761403087946,0.02832,111660.0,111650.0,0.22860896]
[1761403088246,0.005,111660.0,111650.0,0.35760162]
[1761403088432,0.005,111660.0,111650.0,0.22860896]
[1761403091141,0.005,111660.0,111650.0,0.0996163]
[1761403091341,0.005,111660.0,111650.0,0.22860896]
[1761403098452,0.06389,111660.0,111650.0,0.0996163]
[1761403098649,0.005,111660.0,111650.0,0.22860896]
[1761403098841,0.02832,111660.0,111650.0,0.22860896]
[1761403100649,0.02832,111660.0,111650.0,0.33165068]
[1761403102057,0.05033,111660.0,111650.0,0.33165068]
[1761403108163,0.05033,111660.0,111650.0,0.39613225]
[1761403108966,0.05033,111660.0,111650.0,0.33165068]
[1761403109166,0.05033,111660.0,111650.0,0.39613225]
[1761403111067,0.005,111660.0,111650.0,0.39613225]
[1761403112967,0.03662,111670.0,111660.0,0.0996083]
[1761403113167,0.03662,111670.0,111660.0,0.64596268]
[1761403113558,0.05872,111670.0,111660.0,0.64596268]
[1761403114263,0.06472,111670.0,111660.0,0.64596268]
[1761403115669,0.06572,111670.0,111660.0,2.14596268]
[1761403116563,0.06572,111670.0,111660.0,2.15489564]
[1761403116760,0.05972,111670.0,111660.0,2.15789564]
[1761403118264,0.02432,111670.0,111660.0,2.15789564]
[1761403118470,0.04642,111670.0,111660.0,2.15789564]
[1761403120074,0.06003,111670.0,111660.0,2.15789564]
[1761403127178,0.08263582,111670.0,111660.0,2.15789564]
[1761403130182,0.06003,111670.0,111660.0,2.15789564]
[1761403131081,0.02432,111670.0,111660.0,2.15789564]
[1761403131279,0.04634,111670.0,111660.0,2.15789564]
[1761403131786,0.001,111670.0,111660.0,2.15789564]
[1761403132888,0.02424,111670.0,111660.0,2.15789564]
[1761403142195,0.04634,111670.0,111660.0,2.15789564]
[1761403145185,0.04634,111670.0,111660.0,2.22237721]
[1761403151392,0.06893125,111670.0,111660.0,2.06834734]
[1761403151598,0.08200125,111670.0,111660.0,2.06834734]
[1761403152098,0.08200125,111670.0,111660.0,1.75402734]
[1761403152294,0.08200125,111670.0,111660.0,2.06830734]
[1761403154400,0.08200125,111670.0,111660.0,1.75402734]
[1761403154600,0.08200125,111670.0,111660.0,2.06830734]
[1761403160498,0.05941,111670.0,111660.0,2.06830734]
[1761403160699,0.05941,111670.0,111660.0,1.75402734]
[1761403160899,0.05941,111670.0,111660.0,2.06830734]
[1761403162704,0.05941,111670.0,111660.0,1.96516756]
[1761403169817,0.05941,111670.0,111660.0,0.02199296]
[1761403170012,0.08196761,111670.0,111660.0,0.33120296]
[1761403170316,0.08196761,111670.0,111660.0,0.33623296]
[1761403171118,0.08196761,111670.0,111660.0,0.3273]
[1761403172918,0.08196315,111670.0,111660.0,0.33629415]
[1761403173112,0.08196315,111670.0,111660.0,0.46518875]
[1761403182426,0.08196315,111670.0,111660.0,0.33629415]
[1761403182726,0.08196315,111670.0,111660.0,0.46518875]
[1761403183127,0.08196315,111670.0,111660.0,0.4561946]
[1761403184635,0.08196315,111670.0,111660.0,0.3273]
[1761403184931,0.08196315,111670.0,111660.0,0.33622933]
[1761403186928,0.08196315,111670.0,111660.0,0.3273]
[1761403187124,0.08196315,111670.0,111660.0,0.4561946]
[1761403190537,0.08196315,111670.0,111660.0,0.3273]
[1761403190930,0.08196315,111670.0,111660.0,0.003]
[1761403191132,0.10196315,111670.0,111660.0,0.003]
[1761403191329,0.10196315,111670.0,111660.0,0.00803]
[1761403191533,0.10196315,111670.0,111660.0,0.01306]
[1761403196032,0.70196315,111670.0,111660.0,0.01306]
[1761403201750,0.10196315,111670.0,111660.0,0.003]
[1761403203545,0.10196315,111670.0,111660.0,0.00803]
[1761403204645,0.10196315,111670.0,111660.0,0.003]
[1761403208046,0.10196315,111670.0,111660.0,0.00803]
[1761403208252,0.10196315,111670.0,111660.0,0.01306]
[1761403209647,0.10196315,111670.0,111660.0,0.00803]
[1761403210544,0.10196315,111670.0,111660.0,0.01306]
[1761403214052,0.10196315,111670.0,111660.0,0.003]
[1761403214950,0.10196315,111670.0,111660.0,0.00803]
[1761403218151,0.10196315,111670.0,111660.0,0.003]
[1761403218451,0.10196315,111670.0,111660.0,0.00803]
[1761403222553,0.10196315,111670.0,111660.0,0.003]
[1761403222755,0.10196315,111670.0,111660.0,0.11905041]
[1761403226450,0.21801356,111670.0,111660.0,0.11905041]
[1761403230253,0.21801356,111670.0,111660.0,0.12408041]
[1761403231260,0.10196315,111670.0,111660.0,0.12911041]
[1761403235156,0.3821784,111670.0,111660.0,0.003]
[1761403235463,0.05842,111650.0,111640.0,0.12611041]
[1761403235665,0.08097315,111650.0,111640.0,0.12611041]
[1761403235962,0.08097315,111650.0,111640.0,0.13493638]
[1761403236162,0.05842,111650.0,111640.0,0.13493638]
[1761403236363,0.05842,111650.0,111640.0,0.12611041]
[1761403236562,0.08105254,111650.0,111640.0,0.12611041]
[1761403237062,0.05842,111650.0,111640.0,0.13411041]
[1761403237463,0.05842,111650.0,111640.0,0.12611041]
[1761403238365,0.05942,111650.0,111640.0,0.12611041]
[1761403240864,0.05942,111650.0,111640.0,0.13519671]
[1761403254472,0.08201829,111650.0,111640.0,0.0191463]
[1761403254677,0.08201829,111650.0,111640.0,0.13519671]
[1761403259089,0.05942,111650.0,111640.0,0.13519671]
[1761403260891,0.05842,111650.0,111640.0,0.13519671]
[1761403261090,0.05942,111650.0,111640.0,0.13519671]
[1761403261785,0.001,111650.0,111640.0,0.34081152]
[1761403262090,0.001,111650.0,111640.0,0.34584152]
[1761403262281,0.001,111650.0,111640.0,0.41032309]
[1761403262477,0.001,111650.0,111640.0,1.01032309]
[1761403262683,0.05946,111670.0,111640.0,1.01032309]
[1761403262984,0.08206914,111670.0,111660.0,0.24216082]
[1761403264293,0.08306914,111670.0,111660.0,0.24216082]
[1761403265692,0.08406914,111670.0,111660.0,0.24216082]
[1761403266090,0.08406914,111670.0,111660.0,0.33170902]
[1761403266295,0.002,111670.0,111660.0,0.33170902]
[1761403267292,0.002,111670.0,111660.0,0.24216082]
[1761403267486,0.02448,111670.0,111660.0,0.24216082]
[1761403267895,0.04757,111670.0,111660.0,0.24216082]
[1761403268096,0.06112,111670.0,111660.0,0.24216082]
[1761403275000,0.002,111670.0,111660.0,0.33170912]
[1761403275210,0.0133,111680.0,111660.0,0.33170912]
[1761403275211,0.05887,111680.0,111660.0,0.33170912]
[1761403275399,0.05887,111680.0,111670.0,0.44027041]
[1761403276201,0.02248,111680.0,111670.0,0.64586112]
[1761403276503,0.02548,111680.0,111670.0,0.64586112]
[1761403276707,0.02648,111680.0,111670.0,0.64586112]
[1761403277601,0.02648,111680.0,111670.0,0.4137603]
[1761403277910,0.004,111680.0,111670.0,0.64586112]
[1761403280215,0.02648,111680.0,111670.0,0.64586112]
[1761403280614,0.02648,111680.0,111670.0,0.52981071]
[1761403280917,0.04957,111680.0,111670.0,0.44027041]
[1761403281514,0.04957,111680.0,111670.0,0.52981061]
[1761403283419,0.04957,111680.0,111670.0,0.44027041]
[1761403283609,0.06312,111680.0,111670.0,0.44027041]
[1761403284415,0.06312,111680.0,111670.0,0.44023041]
[1761403284807,0.06312,111680.0,111670.0,0.45306648]
[1761403286210,0.06312,111680.0,111670.0,0.13894648]
[1761403286516,0.06312,111680.0,111670.0,0.45302648]
[1761403308634,0.004,111680.0,111670.0,0.54256668]
[1761403308839,0.02262,111690.0,111670.0,1.14256668]
[1761403309036,0.05943,111700.0,111690.0,0.04282]
[1761403309338,0.16943,111700.0,111690.0,0.48574648]
[1761403310441,0.17443,111700.0,111690.0,0.48574648]
[1761403310744,0.17443,111700.0,111690.0,0.49481419]
[1761403316946,0.17443,111700.0,111690.0,0.48574648]
[1761403318255,0.17443,111700.0,111690.0,0.49482248]
[1761403320649,0.17443,111700.0,111690.0,0.48574648]
[1761403320945,0.19696368,111700.0,111690.0,0.48574648]
[1761403326358,0.19696368,111700.0,111690.0,0.17170648]
[1761403326558,0.19696368,111700.0,111690.0,0.48574648]
[1761403326765,0.19696368,111700.0,111690.0,0.17170648]
[1761403326964,0.19696368,111700.0,111690.0,0.48574648]
[1761403329065,0.19696368,111700.0,111690.0,0.17170648]
[1761403329273,0.19696368,111700.0,111690.0,0.48574648]
[1761403333372,0.19696368,111700.0,111690.0,0.17170648]
[1761403333666,0.19696368,111700.0,111690.0,0.35682]
[1761403333868,0.22109424,111700.0,111690.0,0.35682]
[1761403335269,0.11109424,111700.0,111690.0,0.35682]
[1761403335569,0.39109424,111700.0,111690.0,0.35682]
[1761403335768,0.23109424,111700.0,111690.0,0.35682]
[1761403336369,0.65109424,111700.0,111690.0,0.35682]
[1761403337067,0.65109424,111700.0,111690.0,0.04282]
[1761403337465,0.65109424,111700.0,111690.0,0.02169]
[1761403338268,0.42109424,111700.0,111690.0,0.02169]
[1761403341677,0.42109424,111700.0,111690.0,0.0443]
[1761403342179,1.02109424,111700.0,111690.0,0.0443]
[1761403343775,0.99696368,111700.0,111690.0,0.0443]
[1761403344779,1.02109424,111700.0,111690.0,0.16028517]
[1761403345280,0.99696368,111700.0,111690.0,0.16028517]
[1761403345578,1.02109424,111700.0,111690.0,0.16028517]
[1761403345978,0.99696368,111700.0,111690.0,0.16028517]
[1761403349782,0.05687,111690.0,111680.0,0.35969]
[1761403349979,0.07940368,111690.0,111680.0,0.47567517]
[1761403350664,0.07940368,111690.0,111680.0,0.48447358]
[1761403350870,0.07940368,111690.0,111680.0,0.35969]
[1761403351179,0.07940368,111690.0,111680.0,0.47567517]
[1761403353078,0.07940368,111690.0,111680.0,0.48463715]
[1761403353482,0.07940368,111690.0,111680.0,0.47567517]
[1761403359784,0.07940368,111690.0,111680.0,0.35969]
[1761403359985,0.07940368,111690.0,111680.0,0.47567517]
[1761403365383,0.08940368,111690.0,111680.0,0.16167517]
[1761403365589,0.08940368,111690.0,111680.0,0.47567517]
[1761403365993,0.07940368,111690.0,111680.0,0.47567517]
[1761403366284,0.07940368,111690.0,111680.0,0.35969]
[1761403366492,0.07940368,111690.0,111680.0,0.47567517]
[1761403368289,0.07940368,111690.0,111680.0,0.16167517]
[1761403368692,0.08836738,111690.0,111680.0,0.16167517]
[1761403369191,0.07940368,111690.0,111680.0,0.16167517]
[1761403372190,0.08819256,111690.0,111680.0,0.16167517]
[1761403373192,0.10819256,111690.0,111680.0,0.16167517]
[1761403373493,0.09940368,111690.0,111680.0,0.16167517]
[1761403377181,0.21538885,111690.0,111680.0,0.16167517]
[1761403377387,0.23951941,111690.0,111680.0,0.04569]
[1761403377588,0.23951941,111690.0,111680.0,0.16167517]
[1761403377589,0.12353424,111690.0,111680.0,0.16167517]
[1761403377787,0.12353424,111690.0,111680.0,0.04569]
[1761403377987,0.12353424,111690.0,111680.0,0.16167517]
[1761403378495,0.23951941,111690.0,111680.0,0.04569]
[1761403378697,0.23951941,111690.0,111680.0,0.02308]
[1761403378999,0.23951941,111690.0,111670.0,0.42998517]
[1761403379000,0.05913,111680.0,111670.0,0.15875517]
[1761403379296,0.08166368,111680.0,111670.0,0.04277]
[1761403379491,0.08166368,111680.0,111670.0,0.15875517]
[1761403380398,0.08166368,111680.0,111670.0,0.16175517]
[1761403381796,0.09166368,111680.0,111670.0,0.16175517]
[1761403382901,0.20764885,111680.0,111670.0,0.16175517]
[1761403385798,0.20764885,111680.0,111670.0,0.04577]
[1761403389801,0.09166368,111680.0,111670.0,0.04577]
[1761403390202,0.09166368,111680.0,111670.0,0.16175517]
[1761403401410,0.11579424,111680.0,111670.0,0.16175517]
[1761403406704,0.10579424,111680.0,111670.0,0.17467477]
[1761403406910,0.04577368,111680.0,111670.0,0.17970477]
[1761403407110,0.02253368,111680.0,111670.0,0.17970477]
[1761403407709,0.04367368,111680.0,111670.0,0.17970477]
[1761403408313,0.06624368,111680.0,111670.0,0.17970477]
[1761403409023,0.04367368,111680.0,111670.0,0.17970477]
[1761403409323,0.02253368,111680.0,111670.0,0.17970477]
[1761403410525,0.08139056,111700.0,111690.0,0.04551]
[1761403410716,0.21370481,111700.0,111690.0,0.17441477]
[1761403412434,0.18957425,111700.0,111690.0,0.17441477]
[1761403412930,0.19157425,111700.0,111690.0,0.18331702]
[1761403423336,0.02431425,111700.0,111690.0,0.19462702]
[1761403423543,0.002,111700.0,111690.0,0.19462702]
[1761403423928,0.02434,111700.0,111690.0,0.19462702]
[1761403425732,0.04696,111700.0,111690.0,0.19462702]
[1761403428234,0.02434,111700.0,111690.0,0.19462702]
[1761403431143,0.04696,111700.0,111690.0,0.19462702]
[1761403435348,0.06916789,111700.0,111690.0,0.19462702]
[1761403435549,0.04696,111700.0,111690.0,0.19462702]
[1761403436051,0.06916806,111700.0,111690.0,0.19462702]
[1761403439646,0.04654806,111700.0,111690.0,0.19462702]
[1761403440344,0.06957806,111700.0,111690.0,0.19462702]
[1761403440544,0.04654806,111700.0,111690.0,0.19462702]
[1761403443253,0.06957806,111700.0,111690.0,0.19462702]
[1761403447256,0.08232806,111700.0,111690.0,0.19462702]
[1761403447461,0.08232806,111700.0,111690.0,0.18331702]
[1761403448461,0.08232806,111700.0,111690.0,0.17441477]
[1761403448961,0.09232806,111700.0,111690.0,0.35947]
[1761403449556,0.09232806,111700.0,111690.0,0.48837477]
[1761403450661,0.09232806,111700.0,111690.0,0.35947]
[1761403452964,0.09232806,111700.0,111690.0,0.04551]
[1761403456967,0.09232806,111700.0,111690.0,0.17441477]
[1761403457369,0.09232806,111700.0,111690.0,0.04551]
[1761403458370,0.09232806,111700.0,111690.0,0.17441477]
[1761403461171,0.09232806,111700.0,111690.0,0.04551]
[1761403468680,0.09232806,111700.0,111690.0,0.16149531]
[1761403469070,0.09232806,111700.0,111690.0,0.04551]
[1761403469275,0.09232806,111700.0,111690.0,0.16149531]
[1761403496006,0.11645862,111700.0,111690.0,0.16149531]
[1761403496203,0.09232806,111700.0,111690.0,0.16149531]
[1761403497001,0.11645862,111700.0,111690.0,0.16149531]
[1761403498597,0.11645862,111700.0,111690.0,0.04551]
[1761403498797,0.11645862,111700.0,111690.0,0.16149531]
[1761403502610,0.11645862,111700.0,111690.0,0.04551]
[1761403503207,0.11645862,111700.0,111690.0,0.16149531]
[1761403504611,0.11645862,111700.0,111690.0,0.04551]
[1761403504804,0.11645862,111700.0,111690.0,0.16149531]
[1761403507007,0.09232806,111700.0,111690.0,0.16149531]
[1761403507410,0.11645862,111700.0,111690.0,0.16149531]
[1761403507613,0.09232806,111700.0,111690.0,0.16149531]
[1761403508013,0.11645862,111700.0,111690.0,0.16149531]
[1761403508212,0.09232806,111700.0,111690.0,0.16149531]
[1761403508611,0.11645862,111700.0,111690.0,0.16149531]
[1761403509510,0.09232806,111700.0,111690.0,0.04551]
[1761403509705,0.09232806,111700.0,111660.0,0.47349531]
[1761403509706,0.03486,111670.0,111660.0,0.47349531]
[1761403509911,0.05777,111670.0,111660.0,0.66281833]
[1761403510111,0.05777,111670.0,111660.0,0.48235145]
[1761403510312,0.05777,111670.0,111660.0,1.08235145]
[1761403510812,0.08010773,111670.0,111660.0,1.08235145]
[1761403511008,0.08010773,111670.0,111660.0,0.05244614]
[1761403511212,0.08010773,111670.0,111660.0,0.16557531]
[1761403513611,0.08010773,111670.0,111660.0,0.04959]
[1761403513917,0.08010773,111670.0,111660.0,0.16557531]
[1761403515016,0.08010773,111670.0,111660.0,0.17455983]
[1761403515220,0.05777,111670.0,111660.0,0.17455983]
[1761403515418,0.05777,111670.0,111660.0,0.29054514]
[1761403515815,0.04445,111670.0,111660.0,0.29557514]
[1761403518715,0.04445,111670.0,111660.0,0.06360452]
[1761403518916,0.04445,111670.0,111660.0,0.29557514]
[1761403521823,0.05777,111670.0,111660.0,0.28156062]
[1761403524328,0.05777,111670.0,111660.0,0.16557531]
[1761403525829,0.05777,111670.0,111660.0,0.04959]
[1761403526031,0.05777,111670.0,111660.0,0.16557531]
[1761403526226,0.05777,111670.0,111660.0,0.04959]
[1761403526426,0.05777,111670.0,111660.0,0.16557531]
[1761403527719,0.08023579,111670.0,111660.0,0.16557531]
[1761403528728,0.08023579,111670.0,111660.0,0.17851684]
[1761403534225,0.08023579,111670.0,111660.0,0.04959]
[1761403538831,0.08023579,111670.0,111660.0,0.02763]
[1761403539036,0.10023579,111670.0,111660.0,0.05012]
[1761403544338,0.10023579,111670.0,111660.0,0.17904684]
[1761403546637,0.10023579,111670.0,111660.0,0.05012]
[1761403552544,0.10023579,111670.0,111660.0,0.17904684]
[1761403556752,0.08023579,111670.0,111660.0,0.17904684]
[1761403562358,0.10023579,111670.0,111660.0,0.17904684]
[1761403562555,0.10023579,111670.0,111660.0,0.05012]
[1761403563964,0.10023579,111670.0,111660.0,0.17904684]
[1761403564867,0.08023579,111670.0,111660.0,0.17904684]
[1761403567867,0.06691579,111670.0,111660.0,0.18407684]
[1761403568168,0.02246579,111670.0,111660.0,0.18407684]
[1761403568762,0.04445579,111670.0,111660.0,0.18407684]
[1761403570466,0.06681579,111670.0,111660.0,0.18407684]
[1761403572061,0.08037579,111670.0,111660.0,0.17904684]
[1761403577269,0.06681579,111670.0,111660.0,0.17904684]
[1761403582577,0.08037579,111670.0,111660.0,0.17904684]
[1761403587578,0.08045713,111670.0,111660.0,0.17904684]
[1761403588680,0.08045713,111670.0,111660.0,0.28216264]
[1761403595674,0.08045713,111670.0,111660.0,0.05012]
[1761403595874,0.08045713,111670.0,111660.0,0.28216264]
[1761403596684,0.08045713,111670.0,111660.0,0.59612264]
[1761403597881,0.08045713,111670.0,111660.0,0.48010132]
[1761403601078,0.08045713,111670.0,111660.0,0.59612264]
[1761403607587,0.08045713,111670.0,111660.0,0.48010132]
[1761403607793,0.25647845,111670.0,111660.0,0.16614132]